[Event "Live Chess"]
[Site "Chess.com"]
[Date "2023.05.21"]
[Round "-"]
[White "Ferrarifan27"]
[Black "Singapourfeuj"]
[Result "1-0"]
[WhiteElo "2071"]
[BlackElo "2213"]
[TimeControl "300"]
[EndTime "0:09:57 PDT"]
[Termination "Ferrarifan27 won by resignation"]

1. e4 {[%clk 0:04:57.7]} 1... c5 {[%clk 0:04:56.8]} 2. Nf3 {[%clk 0:04:56.2]}
2... d6 {[%clk 0:04:56]} 3. d4 {[%clk 0:04:54.1]} 3... cxd4 {[%clk 0:04:55.4]}
4. Nxd4 {[%clk 0:04:53.6]} 4... Nf6 {[%clk 0:04:54.8]} 5. Nc3 {[%clk 0:04:51.3]}
5... a6 {[%clk 0:04:54]} 6. Bg5 {[%clk 0:04:49.5]} 6... Nbd7 {[%clk 0:04:52.8]}
7. f4 {[%clk 0:04:46.6]} 7... Qc7 {[%clk 0:04:51.9]} 8. Qf3 {[%clk 0:04:45.5]}
8... h6 {[%clk 0:04:51.1]} 9. Bh4 {[%clk 0:04:43.2]} 9... g5 {[%clk 0:04:49.9]}
10. fxg5 {[%clk 0:04:41.4]} 10... Ne5 {[%clk 0:04:46]} 11. Qd1 {[%clk
0:04:39.1]} 11... Nfg4 {[%clk 0:04:38.7]} 12. Nd5 {[%clk 0:04:29]} 12... Qc5
{[%clk 0:04:37.5]} 13. Nb3 {[%clk 0:04:21.4]} 13... Qa7 {[%clk 0:04:27.4]} 14.
Nc7+ {[%clk 0:04:08.6]} 14... Kd8 {[%clk 0:04:26.4]} 15. Nxa8 {[%clk 0:04:07.5]}
15... hxg5 {[%clk 0:04:24]} 16. Bg3 {[%clk 0:04:00.4]} 16... Be6 {[%clk
0:04:14.7]} 17. Qd2 {[%clk 0:03:45.3]} 17... Qxa8 {[%clk 0:04:07.9]} 18. O-O-O
{[%clk 0:03:42]} 18... Bh6 {[%clk 0:04:06.4]} 19. h3 {[%clk 0:03:37.9]} 19...
Nf6 {[%clk 0:03:56.2]} 20. Bxe5 {[%clk 0:03:36.6]} 20... Nxe4 {[%clk 0:03:53.4]}
21. Qd4 {[%clk 0:03:32.9]} 21... b5 {[%clk 0:03:41.2]} 22. Bxh8 {[%clk
0:03:30.5]} 22... g4+ {[%clk 0:03:39.2]} 23. Kb1 {[%clk 0:03:28.6]} 23... g3
{[%clk 0:03:36]} 24. Qb6+ {[%clk 0:03:17.2]} 24... Kd7 {[%clk 0:03:33.7]} 25.
Nc5+ {[%clk 0:03:12.3]} 25... Nxc5 {[%clk 0:03:31.5]} 26. Qxc5 {[%clk
0:03:11.6]} 26... f6 {[%clk 0:03:16.6]} 27. Bxf6 {[%clk 0:03:07.3]} 27... Qb8
{[%clk 0:03:06.9]} 28. Bc3 {[%clk 0:02:57.1]} 28... a5 {[%clk 0:03:04.8]} 29.
Qxb5+ {[%clk 0:02:52.9]} 29... Qxb5 {[%clk 0:03:03.3]} 30. Bxb5+ {[%clk
0:02:52.8]} 1-0

[Event "Live Chess"]
[Site "Chess.com"]
[Date "2023.05.21"]
[Round "-"]
[White "CroasArRheun"]
[Black "Denz14"]
[Result "1-0"]
[WhiteElo "1810"]
[BlackElo "1031"]
[TimeControl "300"]
[EndTime "0:10:22 PDT"]
[Termination "CroasArRheun won on time"]

1. d4 {[%clk 0:04:58.5]} 1... Nf6 {[%clk 0:04:51.9]} 2. c4 {[%clk 0:04:57.6]}
2... d6 {[%clk 0:04:51.8]} 3. Nc3 {[%clk 0:04:56.4]} 3... g6 {[%clk 0:04:51]} 4.
Nf3 {[%clk 0:04:55.4]} 4... Bg7 {[%clk 0:04:49.9]} 5. e4 {[%clk 0:04:55.1]} 5...
O-O {[%clk 0:04:47.7]} 6. Be3 {[%clk 0:04:54.1]} 6... e5 {[%clk 0:04:44]} 7.
dxe5 {[%clk 0:04:51.9]} 7... dxe5 {[%clk 0:04:42.8]} 8. Qxd8 {[%clk 0:04:47.5]}
8... Rxd8 {[%clk 0:04:40.5]} 9. Nxe5 {[%clk 0:04:46.4]} 9... Nfd7 {[%clk
0:04:22]} 10. Nxd7 {[%clk 0:04:42]} 10... Nxd7 {[%clk 0:04:17.7]} 11. Rc1 {[%clk
0:04:40.5]} 11... Ne5 {[%clk 0:04:15.7]} 12. Be2 {[%clk 0:04:38.5]} 12... Bg4
{[%clk 0:04:11]} 13. f3 {[%clk 0:04:34.9]} 13... Be6 {[%clk 0:04:05.8]} 14. b3
{[%clk 0:04:32.7]} 14... c6 {[%clk 0:04:00.3]} 15. O-O {[%clk 0:04:30.8]} 15...
Rd7 {[%clk 0:03:51.5]} 16. Rfd1 {[%clk 0:04:29]} 16... Rad8 {[%clk 0:03:50.1]}
17. Bxa7 {[%clk 0:04:24.8]} 17... Bh6 {[%clk 0:03:40.9]} 18. Rxd7 {[%clk
0:04:21.4]} 18... Rxd7 {[%clk 0:03:38.8]} 19. Rd1 {[%clk 0:04:21]} 19... Rxd1+
{[%clk 0:03:33.6]} 20. Bxd1 {[%clk 0:04:20.9]} 20... Nd7 {[%clk 0:03:11.4]} 21.
Bd4 {[%clk 0:04:17.2]} 21... c5 {[%clk 0:03:07.2]} 22. Bf2 {[%clk 0:04:14.5]}
22... Bg7 {[%clk 0:03:05]} 23. Nb5 {[%clk 0:04:12.4]} 23... b6 {[%clk
0:03:00.2]} 24. Kf1 {[%clk 0:04:10.3]} 24... f5 {[%clk 0:02:55.8]} 25. Ke2
{[%clk 0:04:07.2]} 25... fxe4 {[%clk 0:02:54.5]} 26. fxe4 {[%clk 0:04:07.1]}
26... Ne5 {[%clk 0:02:46.7]} 27. Ke3 {[%clk 0:04:03.6]} 27... Nc6 {[%clk
0:02:43.8]} 28. Bc2 {[%clk 0:04:01.2]} 28... Nd4 {[%clk 0:02:34]} 29. Nxd4
{[%clk 0:03:57.6]} 29... Bxd4+ {[%clk 0:02:32.4]} 30. Ke2 {[%clk 0:03:54.5]}
30... Be5 {[%clk 0:02:27]} 31. g3 {[%clk 0:03:52.3]} 31... Kf7 {[%clk
0:02:25.4]} 32. Kd3 {[%clk 0:03:50.9]} 32... Kf6 {[%clk 0:02:14.9]} 33. Be3
{[%clk 0:03:49.9]} 33... g5 {[%clk 0:02:10.3]} 34. Bd1 {[%clk 0:03:47.4]} 34...
Kg6 {[%clk 0:02:08.1]} 35. Bf3 {[%clk 0:03:45.4]} 35... h5 {[%clk 0:02:04.9]}
36. Be2 {[%clk 0:03:44]} 36... Kh6 {[%clk 0:01:32.2]} 37. a3 {[%clk 0:03:39.9]}
37... Kg6 {[%clk 0:01:30.9]} 38. b4 {[%clk 0:03:39.2]} 38... Bd6 {[%clk
0:01:22.6]} 39. Kc3 {[%clk 0:03:34.1]} 39... Be5+ {[%clk 0:01:17.6]} 40. Kb3
{[%clk 0:03:33.2]} 40... cxb4 {[%clk 0:01:16.2]} 41. Bxb6 {[%clk 0:03:28.1]}
41... bxa3 {[%clk 0:01:11.6]} 42. Kxa3 {[%clk 0:03:27.3]} 42... Bd6+ {[%clk
0:01:08.1]} 43. c5 {[%clk 0:03:26]} 43... Bb8 {[%clk 0:01:06.2]} 44. Kb4 {[%clk
0:03:23.3]} 44... g4 {[%clk 0:01:03.8]} 45. c6 {[%clk 0:03:21.4]} 45... Bd6+
{[%clk 0:00:57.4]} 46. Bc5 {[%clk 0:03:20.6]} 46... Bc7 {[%clk 0:00:52.7]} 47.
Kb5 {[%clk 0:03:19.1]} 47... Bc8 {[%clk 0:00:50.5]} 48. Bb6 {[%clk 0:03:16.8]}
48... Bxb6 {[%clk 0:00:34.2]} 49. Kxb6 {[%clk 0:03:16]} 49... Kf7 {[%clk
0:00:32]} 50. Kc7 {[%clk 0:03:15.1]} 50... Be6 {[%clk 0:00:25.2]} 51. Kd8 {[%clk
0:03:14.2]} 1-0

[Event "Live Chess"]
[Site "Chess.com"]
[Date "2023.05.21"]
[Round "-"]
[White "hturner40"]
[Black "raimundklein"]
[Result "0-1"]
[WhiteElo "1775"]
[BlackElo "1750"]
[TimeControl "300"]
[EndTime "0:10:58 PDT"]
[Termination "raimundklein won on time"]

1. Nf3 {[%clk 0:04:56.7]} 1... Nf6 {[%clk 0:04:58.6]} 2. g3 {[%clk 0:04:54.8]}
2... g6 {[%clk 0:04:57.7]} 3. Bg2 {[%clk 0:04:53.8]} 3... Bg7 {[%clk 0:04:57]}
4. O-O {[%clk 0:04:52.8]} 4... O-O {[%clk 0:04:56.1]} 5. d4 {[%clk 0:04:51.5]}
5... d6 {[%clk 0:04:54.8]} 6. c4 {[%clk 0:04:50.2]} 6... Nc6 {[%clk 0:04:53.9]}
7. Nc3 {[%clk 0:04:48.7]} 7... a6 {[%clk 0:04:52.2]} 8. b3 {[%clk 0:04:36.6]}
8... Rb8 {[%clk 0:04:50.4]} 9. a4 {[%clk 0:04:25.3]} 9... Nb4 {[%clk 0:04:43.8]}
10. Bb2 {[%clk 0:04:19.4]} 10... c5 {[%clk 0:04:32.2]} 11. e3 {[%clk 0:04:16.8]}
11... Bd7 {[%clk 0:04:15.9]} 12. dxc5 {[%clk 0:04:00]} 12... dxc5 {[%clk
0:04:15.8]} 13. Nd5 {[%clk 0:03:58.9]} 13... Nbxd5 {[%clk 0:03:56.8]} 14. cxd5
{[%clk 0:03:56.2]} 14... Qc8 {[%clk 0:03:54.4]} 15. Rc1 {[%clk 0:03:42.5]} 15...
b6 {[%clk 0:03:42.9]} 16. d6 {[%clk 0:03:28.6]} 16... exd6 {[%clk 0:03:40.6]}
17. Qxd6 {[%clk 0:03:26.1]} 17... Ne4 {[%clk 0:03:35.1]} 18. Qf4 {[%clk
0:03:02.3]} 18... Bxb2 {[%clk 0:03:30.3]} 19. Qxe4 {[%clk 0:03:00.8]} 19... Bc6
{[%clk 0:03:21.1]} 20. Qh4 {[%clk 0:02:50.3]} 20... Qb7 {[%clk 0:03:12.6]} 21.
Ng5 {[%clk 0:02:44.4]} 21... h5 {[%clk 0:03:02]} 22. Bxc6 {[%clk 0:02:37.4]}
22... Qxc6 {[%clk 0:03:01.9]} 23. Rc2 {[%clk 0:02:23.3]} 23... Bf6 {[%clk
0:02:59.6]} 24. Qf4 {[%clk 0:02:20.4]} 24... Rbe8 {[%clk 0:02:38.5]} 25. h4
{[%clk 0:01:54.3]} 25... Rd8 {[%clk 0:01:59.1]} 26. b4 {[%clk 0:01:38]} 26...
Rd5 {[%clk 0:01:34.8]} 27. Ne4 {[%clk 0:01:24]} 27... Be5 {[%clk 0:01:29.7]} 28.
Qh6 {[%clk 0:01:11.9]} 28... Bg7 {[%clk 0:01:26.6]} 29. Qf4 {[%clk 0:01:09.5]}
29... Rf5 {[%clk 0:01:24]} 30. b5 {[%clk 0:00:20.3]} 30... axb5 {[%clk
0:01:21.3]} 31. axb5 {[%clk 0:00:18.8]} 31... Qe6 {[%clk 0:01:02]} 32. Ng5
{[%clk 0:00:14.3]} 32... Qb3 {[%clk 0:00:55.9]} 33. Qc4 {[%clk 0:00:10.6]} 33...
Qxc4 {[%clk 0:00:42.4]} 34. Rxc4 {[%clk 0:00:09.4]} 34... Ra8 {[%clk 0:00:24]}
35. f4 {[%clk 0:00:07.7]} 35... Rd5 {[%clk 0:00:19.5]} 36. e4 {[%clk 0:00:06.4]}
36... Rd3 {[%clk 0:00:16.3]} 37. Rf3 {[%clk 0:00:01.4]} 37... Rxf3 {[%clk
0:00:07.5]} 0-1

[Event "Live Chess"]
[Site "Chess.com"]
[Date "2023.05.21"]
[Round "-"]
[White "Rusty_Bridges"]
[Black "WelshTiger"]
[Result "0-1"]
[WhiteElo "1526"]
[BlackElo "2358"]
[TimeControl "300"]
[EndTime "0:11:06 PDT"]
[Termination "WelshTiger won on time"]

1. e4 {[%clk 0:04:54.7]} 1... c6 {[%clk 0:04:58.4]} 2. d4 {[%clk 0:04:51.1]}
2... d5 {[%clk 0:04:58.3]} 3. e5 {[%clk 0:04:50]} 3... c5 {[%clk 0:04:57.4]} 4.
Nf3 {[%clk 0:04:48.4]} 4... Nc6 {[%clk 0:04:55.7]} 5. c4 {[%clk 0:04:46.2]} 5...
cxd4 {[%clk 0:04:45.2]} 6. Nxd4 {[%clk 0:04:44.2]} 6... Nxe5 {[%clk 0:04:41.4]}
7. cxd5 {[%clk 0:04:40.9]} 7... Qxd5 {[%clk 0:04:39.4]} 8. Nc3 {[%clk
0:04:35.2]} 8... Qd8 {[%clk 0:04:30.6]} 9. Bf4 {[%clk 0:04:31.2]} 9... Nc6
{[%clk 0:04:27.4]} 10. Nxc6 {[%clk 0:04:25.9]} 10... Qxd1+ {[%clk 0:04:25.4]}
11. Rxd1 {[%clk 0:04:24.6]} 11... bxc6 {[%clk 0:04:25.3]} 12. Bc4 {[%clk
0:04:16.3]} 12... Nf6 {[%clk 0:04:23.9]} 13. O-O {[%clk 0:04:09.7]} 13... e6
{[%clk 0:04:23.2]} 14. a3 {[%clk 0:03:52.6]} 14... Nd5 {[%clk 0:04:18.7]} 15.
Nxd5 {[%clk 0:03:48.4]} 15... cxd5 {[%clk 0:04:18.6]} 16. Bd3 {[%clk 0:03:38.6]}
16... Bd7 {[%clk 0:04:17.1]} 17. Rc1 {[%clk 0:03:35.6]} 17... f6 {[%clk
0:04:01.3]} 18. Rc7 {[%clk 0:03:34.5]} 18... e5 {[%clk 0:04:00.4]} 19. Bd2
{[%clk 0:03:20.9]} 19... Bd6 {[%clk 0:03:59.4]} 20. Rb7 {[%clk 0:03:14.2]} 20...
Bc5 {[%clk 0:03:49.9]} 21. Rc1 {[%clk 0:03:02.5]} 21... Bb6 {[%clk 0:03:33.8]}
22. a4 {[%clk 0:02:52.8]} 22... Bxa4 {[%clk 0:03:19.3]} 23. Rxg7 {[%clk
0:02:46.9]} 23... e4 {[%clk 0:02:58.8]} 24. Be2 {[%clk 0:02:07.5]} 24... Bd7
{[%clk 0:02:53.4]} 25. Bb4 {[%clk 0:01:58.4]} 25... h5 {[%clk 0:02:41.4]} 26.
Bc3 {[%clk 0:01:39]} 26... d4 {[%clk 0:02:36.3]} 27. Bb4 {[%clk 0:01:21.3]}
27... d3 {[%clk 0:02:22.7]} 28. Bd1 {[%clk 0:01:14.4]} 28... e3 {[%clk
0:02:19.2]} 29. Bb3 {[%clk 0:01:01.6]} 29... d2 {[%clk 0:02:06.9]} 30. Rd1
{[%clk 0:00:38.2]} 30... e2 {[%clk 0:02:05.2]} 31. Re7+ {[%clk 0:00:35.7]} 31...
Kd8 {[%clk 0:02:04.1]} 32. Rxe2 {[%clk 0:00:35]} 32... Bg4 {[%clk 0:01:49.2]}
33. Rexd2+ {[%clk 0:00:32.3]} 33... Kc7 {[%clk 0:01:48.7]} 34. Rc1+ {[%clk
0:00:30.4]} 34... Kb7 {[%clk 0:01:47.9]} 35. Bd5+ {[%clk 0:00:28.8]} 35... Ka6
{[%clk 0:01:47.4]} 36. Bxa8 {[%clk 0:00:28]} 36... Rxa8 {[%clk 0:01:45.9]} 37.
Ra1+ {[%clk 0:00:24.4]} 37... Kb5 {[%clk 0:01:45.1]} 38. Bc3 {[%clk 0:00:23.2]}
38... Re8 {[%clk 0:01:43.8]} 39. Rd5+ {[%clk 0:00:19]} 39... Kc4 {[%clk
0:01:42.3]} 40. Rd7 {[%clk 0:00:15.3]} 40... Re2 {[%clk 0:01:41]} 41. Rc7+
{[%clk 0:00:13]} 41... Bxc7 {[%clk 0:01:38.2]} 42. f3 {[%clk 0:00:07.7]} 42...
Bb6+ {[%clk 0:01:37.3]} 43. Kf1 {[%clk 0:00:05.6]} 43... Rf2+ {[%clk 0:01:36.7]}
44. Ke1 {[%clk 0:00:04.3]} 44... Bf5 {[%clk 0:01:31]} 45. Bxf6 {[%clk
0:00:02.3]} 45... Bd3 {[%clk 0:01:28.5]} 46. Rc1+ {[%clk 0:00:00.9]} 46... Kd5
{[%clk 0:01:24.8]} 0-1

[Event "Live Chess"]
[Site "Chess.com"]
[Date "2023.05.21"]
[Round "-"]
[White "Shepherds_Pie"]
[Black "Hacker_2009"]
[Result "0-1"]
[WhiteElo "1920"]
[BlackElo "1951"]
[TimeControl "300"]
[EndTime "0:11:09 PDT"]
[Termination "Hacker_2009 won by resignation"]

1. c4 {[%clk 0:04:56.1]} 1... Nf6 {[%clk 0:04:58.5]} 2. Nc3 {[%clk 0:04:54.8]}
2... e6 {[%clk 0:04:58]} 3. e4 {[%clk 0:04:53.8]} 3... d5 {[%clk 0:04:55.4]} 4.
e5 {[%clk 0:04:52.5]} 4... Ng8 {[%clk 0:04:53.2]} 5. d4 {[%clk 0:04:49.9]} 5...
b6 {[%clk 0:04:49.2]} 6. Nf3 {[%clk 0:04:48.4]} 6... Bb7 {[%clk 0:04:47.8]} 7.
cxd5 {[%clk 0:04:45]} 7... exd5 {[%clk 0:04:38.2]} 8. Bd3 {[%clk 0:04:43.6]}
8... c5 {[%clk 0:04:34.4]} 9. Bb5+ {[%clk 0:04:38.8]} 9... Nc6 {[%clk
0:04:28.4]} 10. O-O {[%clk 0:04:35.3]} 10... Ne7 {[%clk 0:04:16.3]} 11. e6
{[%clk 0:04:32.1]} 11... fxe6 {[%clk 0:04:08]} 12. Ne5 {[%clk 0:04:28.9]} 12...
a6 {[%clk 0:04:01.5]} 13. Bxc6+ {[%clk 0:04:24.8]} 13... Bxc6 {[%clk 0:03:55]}
14. Nxc6 {[%clk 0:04:17.7]} 14... Nxc6 {[%clk 0:03:52.6]} 15. Re1 {[%clk
0:04:10.5]} 15... Nxd4 {[%clk 0:03:48.6]} 16. Qh5+ {[%clk 0:04:03.2]} 16... Kd7
{[%clk 0:03:43.3]} 17. Nxd5 {[%clk 0:03:47.6]} 17... exd5 {[%clk 0:03:37.8]} 18.
Qxd5+ {[%clk 0:03:45.9]} 18... Kc7 {[%clk 0:03:37]} 19. Bf4+ {[%clk 0:03:35.1]}
19... Bd6 {[%clk 0:03:34]} 20. Qf7+ {[%clk 0:03:33.3]} 20... Kc6 {[%clk
0:03:26.8]} 21. Bxd6 {[%clk 0:03:18.3]} 21... Qxd6 {[%clk 0:03:22.5]} 22. Rac1
{[%clk 0:03:09.9]} 22... Qf6 {[%clk 0:03:07.5]} 23. Qh5 {[%clk 0:02:55.9]} 23...
Rhf8 {[%clk 0:03:02.8]} 24. f3 {[%clk 0:02:41.1]} 24... g6 {[%clk 0:02:56.7]}
25. Qg4 {[%clk 0:02:34.6]} 25... Rae8 {[%clk 0:02:52.6]} 26. Rxe8 {[%clk
0:02:24.7]} 26... Rxe8 {[%clk 0:02:50.3]} 27. b4 {[%clk 0:02:23.1]} 27... Ne2+
{[%clk 0:02:48]} 0-1

[Event "Live Chess"]
[Site "Chess.com"]
[Date "2023.05.21"]
[Round "-"]
[White "KeithArkell"]
[Black "kerryman1969"]
[Result "1-0"]
[WhiteElo "2555"]
[BlackElo "1167"]
[TimeControl "300"]
[EndTime "0:11:14 PDT"]
[Termination "KeithArkell won by resignation"]

1. d4 {[%clk 0:04:58]} 1... d5 {[%clk 0:04:57.2]} 2. Nf3 {[%clk 0:04:57]} 2...
c6 {[%clk 0:04:53.5]} 3. c4 {[%clk 0:04:56.1]} 3... e6 {[%clk 0:04:50.4]} 4.
cxd5 {[%clk 0:04:54.7]} 4... exd5 {[%clk 0:04:47.6]} 5. Nc3 {[%clk 0:04:53.7]}
5... Nf6 {[%clk 0:04:43.4]} 6. Qc2 {[%clk 0:04:52.9]} 6... g6 {[%clk 0:04:39.5]}
7. Bg5 {[%clk 0:04:51.8]} 7... Bg7 {[%clk 0:04:36.7]} 8. e3 {[%clk 0:04:49.3]}
8... Bf5 {[%clk 0:04:33.2]} 9. Bd3 {[%clk 0:04:48.4]} 9... Bxd3 {[%clk
0:04:29.4]} 10. Qxd3 {[%clk 0:04:48.3]} 10... Nbd7 {[%clk 0:04:26.5]} 11. b4
{[%clk 0:04:46.1]} 11... b5 {[%clk 0:04:22.5]} 12. a4 {[%clk 0:04:44.6]} 12...
a6 {[%clk 0:04:19.6]} 13. a5 {[%clk 0:04:43.8]} 13... Qe7 {[%clk 0:04:09.4]} 14.
Na2 {[%clk 0:04:40.3]} 14... Qe6 {[%clk 0:04:07.1]} 15. Bxf6 {[%clk 0:04:38.1]}
15... Nxf6 {[%clk 0:04:00.6]} 16. O-O {[%clk 0:04:31.7]} 16... O-O {[%clk
0:03:57.3]} 17. Nc1 {[%clk 0:04:29.3]} 17... Ne4 {[%clk 0:03:53.8]} 18. Nd2
{[%clk 0:04:18.4]} 18... f5 {[%clk 0:03:49.2]} 19. Qc2 {[%clk 0:04:10.9]} 19...
Nxd2 {[%clk 0:03:41.9]} 20. Qxd2 {[%clk 0:04:09.6]} 20... Bh6 {[%clk 0:03:38.5]}
21. g3 {[%clk 0:04:07.7]} 21... Qe4 {[%clk 0:03:34.8]} 22. Nd3 {[%clk
0:04:05.5]} 22... Rae8 {[%clk 0:03:27.9]} 23. Rac1 {[%clk 0:04:02.1]} 23... Qf3
{[%clk 0:03:17]} 24. Ne5 {[%clk 0:03:56.2]} 24... Qe4 {[%clk 0:03:06.8]} 25. Qc2
{[%clk 0:03:54.1]} 25... Qxc2 {[%clk 0:02:55.1]} 26. Rxc2 {[%clk 0:03:52.4]}
26... Rc8 {[%clk 0:02:52.9]} 27. Rfc1 {[%clk 0:03:49.6]} 27... Rf6 {[%clk
0:02:47.2]} 28. Rxc6 {[%clk 0:03:47.3]} 28... Rfxc6 {[%clk 0:02:43.6]} 29. Rxc6
{[%clk 0:03:46.1]} 29... Rxc6 {[%clk 0:02:40.8]} 30. Nxc6 {[%clk 0:03:45.2]}
30... Kf7 {[%clk 0:02:36.6]} 31. Nb8 {[%clk 0:03:43.4]} 31... Bf8 {[%clk
0:02:31.5]} 32. Nxa6 {[%clk 0:03:42.2]} 32... Ke6 {[%clk 0:02:28.8]} 33. Nc5+
{[%clk 0:03:41.3]} 33... Kd6 {[%clk 0:02:20.6]} 34. a6 {[%clk 0:03:40.5]} 34...
Kc7 {[%clk 0:02:17.5]} 35. a7 {[%clk 0:03:39.7]} 35... Bxc5 {[%clk 0:02:09.8]}
36. a8=Q {[%clk 0:03:36.9]} 1-0

[Event "Live Chess"]
[Site "Chess.com"]
[Date "2023.05.21"]
[Round "-"]
[White "Jo1ts"]
[Black "JoeRoot66"]
[Result "0-1"]
[WhiteElo "826"]
[BlackElo "1937"]
[TimeControl "300"]
[EndTime "0:11:39 PDT"]
[Termination "JoeRoot66 won by resignation"]

1. d4 {[%clk 0:04:57.4]} 1... d5 {[%clk 0:04:59.2]} 2. Bf4 {[%clk 0:04:56.6]}
2... Nf6 {[%clk 0:04:58.1]} 3. Nf3 {[%clk 0:04:56]} 3... c5 {[%clk 0:04:57.7]}
4. e3 {[%clk 0:04:54.4]} 4... Nc6 {[%clk 0:04:57.4]} 5. c3 {[%clk 0:04:52.7]}
5... Qb6 {[%clk 0:04:57.1]} 6. Qc2 {[%clk 0:04:50]} 6... cxd4 {[%clk 0:04:55.2]}
7. cxd4 {[%clk 0:04:48.3]} 7... Bf5 {[%clk 0:04:54.7]} 8. Bd3 {[%clk 0:04:46.2]}
8... Bxd3 {[%clk 0:04:47.9]} 9. Qxd3 {[%clk 0:04:42.1]} 9... Qxb2 {[%clk
0:04:47.4]} 10. Qc3 {[%clk 0:04:35.8]} 10... Qxc3+ {[%clk 0:04:27.5]} 11. Nxc3
{[%clk 0:04:35.7]} 11... e5 {[%clk 0:04:26.5]} 12. Nxe5 {[%clk 0:04:32.8]} 12...
Bb4 {[%clk 0:04:24.8]} 13. Rc1 {[%clk 0:04:25.6]} 13... Ne4 {[%clk 0:04:23.7]}
14. O-O {[%clk 0:04:06]} 0-1

[Event "Live Chess"]
[Site "Chess.com"]
[Date "2023.05.21"]
[Round "-"]
[White "BillythekidFellowes"]
[Black "mirandaasilva"]
[Result "1-0"]
[WhiteElo "2032"]
[BlackElo "1636"]
[TimeControl "300"]
[EndTime "0:11:52 PDT"]
[Termination "BillythekidFellowes won by resignation"]

1. e4 {[%clk 0:04:38.6]} 1... e6 {[%clk 0:04:59.6]} 2. Nf3 {[%clk 0:04:37.2]}
2... d5 {[%clk 0:04:59.5]} 3. exd5 {[%clk 0:04:37]} 3... Qxd5 {[%clk 0:04:56]}
4. c4 {[%clk 0:04:36.9]} 4... Qd8 {[%clk 0:04:53.8]} 5. d4 {[%clk 0:04:36.8]}
5... Bb4+ {[%clk 0:04:51.4]} 6. Nc3 {[%clk 0:04:35.9]} 6... Bxc3+ {[%clk
0:04:49.9]} 7. bxc3 {[%clk 0:04:35.8]} 7... Nf6 {[%clk 0:04:48.6]} 8. Bd3 {[%clk
0:04:34.4]} 8... Nc6 {[%clk 0:04:47.5]} 9. O-O {[%clk 0:04:33.6]} 9... Ne7
{[%clk 0:04:46.9]} 10. Bg5 {[%clk 0:04:32.2]} 10... Ng6 {[%clk 0:04:45.1]} 11.
Ne5 {[%clk 0:04:30.2]} 11... c5 {[%clk 0:04:34.6]} 12. Re1 {[%clk 0:04:13.5]}
12... O-O {[%clk 0:04:29.1]} 13. h4 {[%clk 0:04:08.2]} 13... cxd4 {[%clk
0:04:22.2]} 14. cxd4 {[%clk 0:03:59.3]} 14... Qxd4 {[%clk 0:04:20.6]} 15. Bxg6
{[%clk 0:03:58.7]} 15... Qxd1 {[%clk 0:04:16.6]} 16. Raxd1 {[%clk 0:03:55]}
16... hxg6 {[%clk 0:04:03.1]} 17. c5 {[%clk 0:03:49.1]} 17... a5 {[%clk
0:03:56.9]} 18. Rd6 {[%clk 0:03:40.3]} 18... Ne8 {[%clk 0:03:45.7]} 19. Rd8
{[%clk 0:03:35.6]} 19... f6 {[%clk 0:03:42]} 20. Nxg6 {[%clk 0:03:33.2]} 20...
fxg5 {[%clk 0:03:36.9]} 21. Nxf8 {[%clk 0:03:17.9]} 21... Kxf8 {[%clk
0:03:36.8]} 22. hxg5 {[%clk 0:03:17.1]} 22... Ke7 {[%clk 0:03:22.1]} 23. Red1
{[%clk 0:03:14.2]} 23... Nc7 {[%clk 0:02:49.3]} 24. g6 {[%clk 0:03:04.8]} 24...
Na6 {[%clk 0:02:19.6]} 25. Rg8 {[%clk 0:02:35.6]} 25... Nxc5 {[%clk 0:01:57.3]}
26. Rdd8 {[%clk 0:02:31.9]} 26... b5 {[%clk 0:00:55.4]} 27. Rxc8 {[%clk
0:02:29.1]} 27... Rxc8 {[%clk 0:00:54.9]} 28. Rxc8 {[%clk 0:02:28.7]} 28... Kd6
{[%clk 0:00:54.1]} 29. Rg8 {[%clk 0:02:26.7]} 29... Ke7 {[%clk 0:00:51.7]} 30.
Rxg7+ {[%clk 0:02:25.9]} 30... Kf6 {[%clk 0:00:51]} 31. Rc7 {[%clk 0:02:25.3]}
31... Ne4 {[%clk 0:00:48.5]} 32. g7 {[%clk 0:02:24.5]} 1-0